[Event "*** Titled Tuesday Blitz"]
[Site "Chess.com"]
[Date "2021.02.09"]
[Round "2"]
[White "erlesfar"]
[Black "jaramsdal"]
[Result "1/2-1/2"]
[WhiteElo "2546"]
[BlackElo "2308"]
[TimeControl "180+1"]
[EndTime "10:19:29 PST"]
[Termination "Game drawn - insufficient material"]

1. e4 {[%clk 0:03:00.9]} 1... c5 {[%clk 0:02:59.5]} 2. d4 {[%clk 0:02:59.2]}
2... cxd4 {[%clk 0:02:59]} 3. c3 {[%clk 0:02:42.4]} 3... d3 {[%clk 0:02:40.6]}
4. Bxd3 {[%clk 0:02:39.8]} 4... g6 {[%clk 0:02:35.3]} 5. Nf3 {[%clk 0:02:38.3]}
5... Bg7 {[%clk 0:02:34.5]} 6. c4 {[%clk 0:02:35.8]} 6... d6 {[%clk 0:02:31.4]}
7. h3 {[%clk 0:02:34.5]} 7... Nf6 {[%clk 0:02:31.4]} 8. O-O {[%clk 0:02:33.1]}
8... O-O {[%clk 0:02:31]} 9. Nc3 {[%clk 0:02:33]} 9... Nc6 {[%clk 0:02:29.1]}
10. Re1 {[%clk 0:02:32.7]} 10... Nd7 {[%clk 0:02:28.5]} 11. Bg5 {[%clk
0:02:31.8]} 11... Re8 {[%clk 0:02:24.4]} 12. Rc1 {[%clk 0:02:30.4]} 12... a5
{[%clk 0:02:16.6]} 13. a3 {[%clk 0:02:24.6]} 13... Nc5 {[%clk 0:02:16]} 14. Bf1
{[%clk 0:02:21.4]} 14... a4 {[%clk 0:02:16.1]} 15. Rc2 {[%clk 0:02:16.9]} 15...
Qa5 {[%clk 0:02:15.5]} 16. Nd5 {[%clk 0:02:13]} 16... Be6 {[%clk 0:01:45.3]} 17.
Bd2 {[%clk 0:02:08]} 17... Qd8 {[%clk 0:01:40.2]} 18. Bc3 {[%clk 0:02:07.4]}
18... Bxc3 {[%clk 0:00:45.4]} 19. Rxc3 {[%clk 0:01:54]} 19... Ne5 {[%clk
0:00:43.9]} 20. Nd4 {[%clk 0:01:30.5]} 20... Bd7 {[%clk 0:00:30.7]} 21. f4
{[%clk 0:01:27.3]} 21... Nc6 {[%clk 0:00:30.3]} 22. Rg3 {[%clk 0:01:16.8]} 22...
e6 {[%clk 0:00:28.6]} 23. Nxc6 {[%clk 0:01:05.4]} 23... bxc6 {[%clk 0:00:25.5]}
24. Nc3 {[%clk 0:01:04.2]} 24... Qb6 {[%clk 0:00:18.3]} 25. Kh1 {[%clk
0:00:59.1]} 25... Qxb2 {[%clk 0:00:18.3]} 26. Qxd6 {[%clk 0:00:57.2]} 26... Ra5
{[%clk 0:00:13.1]} 27. Rb1 {[%clk 0:00:41.3]} 27... Qf2 {[%clk 0:00:12.5]} 28.
Rf3 {[%clk 0:00:39]} 28... Qh4 {[%clk 0:00:11.7]} 29. Qc7 {[%clk 0:00:35]} 29...
Qd8 {[%clk 0:00:11.4]} 30. Qxd8 {[%clk 0:00:31.5]} 30... Rxd8 {[%clk 0:00:12.3]}
31. Rd1 {[%clk 0:00:31.6]} 31... Kf8 {[%clk 0:00:11.6]} 32. f5 {[%clk
0:00:30.7]} 32... Ke7 {[%clk 0:00:11.6]} 33. f6+ {[%clk 0:00:29.9]} 33... Ke8
{[%clk 0:00:12]} 34. e5 {[%clk 0:00:27.3]} 34... Bc8 {[%clk 0:00:12.2]} 35.
Rxd8+ {[%clk 0:00:24.5]} 35... Kxd8 {[%clk 0:00:13.1]} 36. Rf2 {[%clk
0:00:23.8]} 36... Ra7 {[%clk 0:00:11.9]} 37. Rd2+ {[%clk 0:00:21.8]} 37... Rd7
{[%clk 0:00:11.9]} 38. Rxd7+ {[%clk 0:00:20.3]} 38... Kxd7 {[%clk 0:00:12.8]}
39. Be2 {[%clk 0:00:20.3]} 39... Ba6 {[%clk 0:00:13.2]} 40. Kg1 {[%clk 0:00:20]}
40... Kc7 {[%clk 0:00:11.3]} 41. Kf2 {[%clk 0:00:20.1]} 41... Nd7 {[%clk
0:00:11.6]} 42. Nxa4 {[%clk 0:00:18.4]} 42... Nxe5 {[%clk 0:00:11.5]} 43. Nb2
{[%clk 0:00:19.3]} 43... c5 {[%clk 0:00:11]} 44. g4 {[%clk 0:00:19]} 44... h6
{[%clk 0:00:10.9]} 45. h4 {[%clk 0:00:18.4]} 45... g5 {[%clk 0:00:11.8]} 46.
hxg5 {[%clk 0:00:18.2]} 46... hxg5 {[%clk 0:00:12.7]} 47. Ke3 {[%clk 0:00:18.8]}
47... Nd7 {[%clk 0:00:13.3]} 48. Bf3 {[%clk 0:00:18]} 48... Nxf6 {[%clk
0:00:13.7]} 49. Nd3 {[%clk 0:00:18.4]} 49... Bb7 {[%clk 0:00:13.2]} 50. Bxb7
{[%clk 0:00:17]} 50... Kxb7 {[%clk 0:00:14.1]} 51. Nxc5+ {[%clk 0:00:17.5]}
51... Kc6 {[%clk 0:00:14.8]} 52. Ne4 {[%clk 0:00:17.7]} 52... Nxg4+ {[%clk
0:00:14.4]} 53. Kd4 {[%clk 0:00:18.3]} 53... e5+ {[%clk 0:00:13.2]} 54. Kc3
{[%clk 0:00:17.1]} 54... f5 {[%clk 0:00:12.2]} 55. Nxg5 {[%clk 0:00:17]} 55...
e4 {[%clk 0:00:11.5]} 56. Kd4 {[%clk 0:00:16.3]} 56... e3 {[%clk 0:00:10.5]} 57.
Kd3 {[%clk 0:00:15.5]} 57... Kc5 {[%clk 0:00:10.8]} 58. Ne6+ {[%clk 0:00:14.1]}
58... Kd6 {[%clk 0:00:10.4]} 59. Nf4 {[%clk 0:00:15]} 59... Ne5+ {[%clk
0:00:09.7]} 60. Kxe3 {[%clk 0:00:14.4]} 60... Nxc4+ {[%clk 0:00:10]} 61. Kd4
{[%clk 0:00:15]} 61... Nxa3 {[%clk 0:00:10.2]} 62. Ng6 {[%clk 0:00:15]} 62...
Ke6 {[%clk 0:00:09.8]} 63. Ke3 {[%clk 0:00:14.8]} 63... Kf6 {[%clk 0:00:09.8]}
64. Nh4 {[%clk 0:00:14.9]} 64... Nc4+ {[%clk 0:00:09.9]} 65. Kf4 {[%clk
0:00:13.6]} 65... Ne5 {[%clk 0:00:08.2]} 66. Nxf5 {[%clk 0:00:14.5]} 1/2-1/2

[Event "*** Titled Tuesday Blitz"]
[Site "Chess.com"]
[Date "2021.02.09"]
[Round "2"]
[White "Beca95"]
[Black "Anna_ChessMate"]
[Result "1-0"]
[WhiteElo "2908"]
[BlackElo "2547"]
[TimeControl "180+1"]
[EndTime "10:19:33 PST"]
[Termination "Beca95 won by resignation"]

1. d4 {[%clk 0:03:00.9]} 1... d5 {[%clk 0:02:59.3]} 2. c4 {[%clk 0:03:00.1]}
2... c6 {[%clk 0:02:59]} 3. Nf3 {[%clk 0:02:59.8]} 3... Nf6 {[%clk 0:02:58.3]}
4. Nc3 {[%clk 0:03:00]} 4... dxc4 {[%clk 0:02:58.1]} 5. a4 {[%clk 0:03:00.1]}
5... Bf5 {[%clk 0:02:58.3]} 6. e3 {[%clk 0:03:00.3]} 6... e6 {[%clk 0:02:57.8]}
7. Bxc4 {[%clk 0:03:00.9]} 7... Bb4 {[%clk 0:02:58.4]} 8. h3 {[%clk 0:03:00.4]}
8... Nbd7 {[%clk 0:02:50.4]} 9. O-O {[%clk 0:02:55]} 9... O-O {[%clk 0:02:49.5]}
10. Nh4 {[%clk 0:02:54.8]} 10... Qe7 {[%clk 0:02:36.9]} 11. Nxf5 {[%clk
0:02:46.5]} 11... exf5 {[%clk 0:02:37.8]} 12. Qf3 {[%clk 0:02:46.4]} 12... g6
{[%clk 0:02:33.1]} 13. g4 {[%clk 0:02:45.6]} 13... fxg4 {[%clk 0:02:28.7]} 14.
hxg4 {[%clk 0:02:46.5]} 14... Nb6 {[%clk 0:02:20.4]} 15. Bb3 {[%clk 0:02:44.9]}
15... Rad8 {[%clk 0:02:13.9]} 16. Kg2 {[%clk 0:02:41.4]} 16... Nbd5 {[%clk
0:02:02.7]} 17. Rh1 {[%clk 0:02:17]} 17... Rfe8 {[%clk 0:01:34.3]} 18. g5 {[%clk
0:01:43.8]} 18... Ne4 {[%clk 0:01:11]} 19. Nxe4 {[%clk 0:01:42.9]} 19... Qxe4
{[%clk 0:01:11.2]} 20. Qxe4 {[%clk 0:01:43.5]} 20... Rxe4 {[%clk 0:01:11.8]} 21.
Kf3 {[%clk 0:01:44]} 21... Ree8 {[%clk 0:00:41.7]} 22. e4 {[%clk 0:01:43.8]}
22... Nc7 {[%clk 0:00:41.3]} 23. Be3 {[%clk 0:01:36.8]} 23... a5 {[%clk
0:00:39.7]} 24. Rh4 {[%clk 0:01:28]} 24... Ne6 {[%clk 0:00:34.1]} 25. Rah1
{[%clk 0:01:14.6]} 25... h5 {[%clk 0:00:33.1]} 26. d5 {[%clk 0:00:57.2]} 26...
cxd5 {[%clk 0:00:23.4]} 27. Bxd5 {[%clk 0:00:56.3]} 27... Rd7 {[%clk 0:00:13.6]}
28. Rc1 {[%clk 0:00:50.9]} 28... Be7 {[%clk 0:00:11.6]} 29. Bxe6 {[%clk
0:00:33.9]} 29... fxe6 {[%clk 0:00:12.5]} 30. Rhh1 {[%clk 0:00:28.3]} 30... Rf8+
{[%clk 0:00:12.4]} 31. Ke2 {[%clk 0:00:27.6]} 31... Bb4 {[%clk 0:00:12.9]} 32.
Rhd1 {[%clk 0:00:25.5]} 32... Rfd8 {[%clk 0:00:12.5]} 33. Rxd7 {[%clk
0:00:23.8]} 33... Rxd7 {[%clk 0:00:13.4]} 34. f4 {[%clk 0:00:20.3]} 34... Kf7
{[%clk 0:00:12.3]} 35. Rc8 {[%clk 0:00:20.3]} 35... Kg7 {[%clk 0:00:11.5]} 36.
Kf3 {[%clk 0:00:18.4]} 36... Kf7 {[%clk 0:00:09.7]} 37. Rc4 {[%clk 0:00:10.6]}
37... Kg7 {[%clk 0:00:07.7]} 38. Bd4+ {[%clk 0:00:10.8]} 38... Kf7 {[%clk
0:00:08]} 39. Ke3 {[%clk 0:00:11.2]} 39... Ke7 {[%clk 0:00:06.1]} 40. Bf6+
{[%clk 0:00:05.1]} 40... Kf7 {[%clk 0:00:06.6]} 41. Bc3 {[%clk 0:00:05.4]} 41...
Bxc3 {[%clk 0:00:05.2]} 42. bxc3 {[%clk 0:00:06.3]} 42... Ke7 {[%clk 0:00:04.7]}
43. Rc5 {[%clk 0:00:06.7]} 43... b6 {[%clk 0:00:05]} 44. Rc6 {[%clk 0:00:06.4]}
44... Rb7 {[%clk 0:00:05.5]} 45. Kd4 {[%clk 0:00:04]} 45... Kd7 {[%clk
0:00:05.4]} 46. Rc4 {[%clk 0:00:04.1]} 46... Kd6 {[%clk 0:00:05.5]} 47. Rc8
{[%clk 0:00:04.2]} 47... Rd7 {[%clk 0:00:03.5]} 48. Rg8 {[%clk 0:00:03.9]} 48...
e5+ {[%clk 0:00:01.5]} 49. Ke3 {[%clk 0:00:03.2]} 49... Ke6 {[%clk 0:00:02.4]}
50. Rxg6+ {[%clk 0:00:02.5]} 50... Kf7 {[%clk 0:00:02.8]} 51. f5 {[%clk
0:00:03.4]} 51... Rc7 {[%clk 0:00:02.5]} 52. Rf6+ {[%clk 0:00:04]} 52... Ke7
{[%clk 0:00:02.1]} 53. Rxb6 {[%clk 0:00:04.9]} 53... Rxc3+ {[%clk 0:00:02]} 54.
Kd2 {[%clk 0:00:05.8]} 54... Rc4 {[%clk 0:00:02.5]} 55. g6 {[%clk 0:00:05.4]}
55... Rd4+ {[%clk 0:00:02.4]} 56. Ke3 {[%clk 0:00:05]} 56... Rxa4 {[%clk
0:00:03.1]} 57. f6+ {[%clk 0:00:05.3]} 57... Kd7 {[%clk 0:00:03.7]} 58. g7
{[%clk 0:00:05]} 58... Ra3+ {[%clk 0:00:03.7]} 59. Kf2 {[%clk 0:00:05.4]} 59...
Ra2+ {[%clk 0:00:03.7]} 60. Kg3 {[%clk 0:00:06]} 60... h4+ {[%clk 0:00:03.7]}
61. Kh3 {[%clk 0:00:05.4]} 1-0

[Event "*** Titled Tuesday Blitz"]
[Site "Chess.com"]
[Date "2021.02.09"]
[Round "2"]
[White "SmirnovAlexandrA"]
[Black "Spartakus1975"]
[Result "1-0"]
[WhiteElo "2257"]
[BlackElo "2579"]
[TimeControl "180+1"]
[EndTime "10:19:35 PST"]
[Termination "SmirnovAlexandrA won by resignation"]

1. e4 {[%clk 0:03:00.9]} 1... e6 {[%clk 0:02:59.9]} 2. d4 {[%clk 0:02:57.1]}
2... d5 {[%clk 0:03:00.1]} 3. Nc3 {[%clk 0:02:55.5]} 3... Bb4 {[%clk 0:02:54.9]}
4. e5 {[%clk 0:02:54.7]} 4... Ne7 {[%clk 0:02:53.7]} 5. a3 {[%clk 0:02:54.8]}
5... Bxc3+ {[%clk 0:02:53.4]} 6. bxc3 {[%clk 0:02:55.7]} 6... c5 {[%clk
0:02:53.7]} 7. Qg4 {[%clk 0:02:55.6]} 7... O-O {[%clk 0:02:35.5]} 8. Bd3 {[%clk
0:02:49.5]} 8... Qa5 {[%clk 0:02:35]} 9. Bd2 {[%clk 0:02:47.6]} 9... f5 {[%clk
0:02:33.5]} 10. Qg3 {[%clk 0:02:28.3]} 10... Qa4 {[%clk 0:02:25.9]} 11. Nf3
{[%clk 0:02:19.8]} 11... c4 {[%clk 0:02:25.2]} 12. Be2 {[%clk 0:02:18.1]} 12...
Qxc2 {[%clk 0:02:14.2]} 13. h4 {[%clk 0:02:15.9]} 13... Nbc6 {[%clk 0:02:03.1]}
14. h5 {[%clk 0:02:15.2]} 14... f4 {[%clk 0:01:56.2]} 15. Qh4 {[%clk 0:02:06.3]}
15... h6 {[%clk 0:01:42.4]} 16. O-O {[%clk 0:02:00.5]} 16... Bd7 {[%clk
0:01:39]} 17. Rfc1 {[%clk 0:01:56.3]} 17... Qf5 {[%clk 0:01:33.9]} 18. Bd1
{[%clk 0:01:53.8]} 18... Be8 {[%clk 0:01:26.4]} 19. Nh2 {[%clk 0:01:48.4]} 19...
Qg5 {[%clk 0:01:18.6]} 20. Qxg5 {[%clk 0:01:35.5]} 20... hxg5 {[%clk 0:01:18]}
21. Bg4 {[%clk 0:01:35.9]} 21... Nf5 {[%clk 0:00:54.6]} 22. Nf3 {[%clk
0:01:35.4]} 22... Bd7 {[%clk 0:00:48]} 23. Nxg5 {[%clk 0:01:35.1]} 23... b6
{[%clk 0:00:47.2]} 24. Nh3 {[%clk 0:01:22.9]} 24... Nfxd4 {[%clk 0:00:41.4]} 25.
cxd4 {[%clk 0:01:21.8]} 25... Nxd4 {[%clk 0:00:41.9]} 26. Bxf4 {[%clk 0:01:02]}
26... Nb3 {[%clk 0:00:40.5]} 27. Bg5 {[%clk 0:00:54.6]} 27... Rac8 {[%clk
0:00:32.8]} 28. Rab1 {[%clk 0:00:52.9]} 28... Nxc1 {[%clk 0:00:31.9]} 29. Rxc1
{[%clk 0:00:53.8]} 29... d4 {[%clk 0:00:28.4]} 30. Nf4 {[%clk 0:00:52.8]} 30...
Rc6 {[%clk 0:00:21.8]} 31. Nd5 {[%clk 0:00:46.8]} 31... Kf7 {[%clk 0:00:13.8]}
32. Nf4 {[%clk 0:00:23.6]} 32... c3 {[%clk 0:00:12]} 33. Nd3 {[%clk 0:00:19.9]}
33... a5 {[%clk 0:00:11.5]} 34. Bf3 {[%clk 0:00:17.3]} 34... Rc7 {[%clk
0:00:10.4]} 35. Be4 {[%clk 0:00:17.6]} 35... b5 {[%clk 0:00:10.1]} 36. Bg6+
{[%clk 0:00:17.3]} 36... Kg8 {[%clk 0:00:09.9]} 37. f4 {[%clk 0:00:15.4]} 37...
Rb8 {[%clk 0:00:08.9]} 38. Be7 {[%clk 0:00:14.3]} 38... Bc6 {[%clk 0:00:07.5]}
39. Bd6 {[%clk 0:00:14.1]} 39... Rcb7 {[%clk 0:00:06.7]} 40. Bxb8 {[%clk
0:00:15]} 40... Rxb8 {[%clk 0:00:06]} 41. Rb1 {[%clk 0:00:12.9]} 41... Bd5
{[%clk 0:00:05.3]} 42. Kf2 {[%clk 0:00:12.4]} 42... Bc4 {[%clk 0:00:05.4]} 43.
g3 {[%clk 0:00:12.1]} 43... Kf8 {[%clk 0:00:05.6]} 44. Be4 {[%clk 0:00:08.3]}
44... Ke7 {[%clk 0:00:05.5]} 45. Nc5 {[%clk 0:00:07.2]} 45... Rc8 {[%clk
0:00:04.9]} 46. Nd3 {[%clk 0:00:06.5]} 46... Rb8 {[%clk 0:00:05.1]} 47. Ke2
{[%clk 0:00:06.8]} 47... Rb6 {[%clk 0:00:05.3]} 48. Kd1 {[%clk 0:00:06.8]} 48...
Rb8 {[%clk 0:00:04.6]} 49. Kc2 {[%clk 0:00:07.1]} 49... b4 {[%clk 0:00:04.5]}
50. axb4 {[%clk 0:00:06.7]} 50... axb4 {[%clk 0:00:05.1]} 51. Nxb4 {[%clk
0:00:06.6]} 51... Rb6 {[%clk 0:00:04.9]} 52. Nd3 {[%clk 0:00:06.6]} 52... Ra6
{[%clk 0:00:04.8]} 53. Nc5 {[%clk 0:00:05.4]} 53... Ra2+ {[%clk 0:00:04.1]} 54.
Kc1 {[%clk 0:00:05.4]} 54... Rh2 {[%clk 0:00:04.7]} 55. Rb7+ {[%clk 0:00:04.9]}
55... Kd8 {[%clk 0:00:04.9]} 56. Bc6 {[%clk 0:00:04.7]} 56... d3 {[%clk
0:00:04.1]} 57. Rd7+ {[%clk 0:00:04.3]} 57... Kc8 {[%clk 0:00:04.4]} 58. Nxd3
{[%clk 0:00:04.6]} 58... Bxd3 {[%clk 0:00:03.8]} 59. Rxd3 {[%clk 0:00:05.5]}
59... Rh3 {[%clk 0:00:03.6]} 60. Rxc3 {[%clk 0:00:05.6]} 60... Rxh5 {[%clk
0:00:04.1]} 61. Bf3+ {[%clk 0:00:05.6]} 61... Kd8 {[%clk 0:00:03.3]} 62. Bxh5
{[%clk 0:00:06.5]} 1-0

[Event "*** Titled Tuesday Blitz"]
[Site "Chess.com"]
[Date "2021.02.09"]
[Round "2"]
[White "MaevskiyNikolay"]
[Black "AryanTari"]
[Result "0-1"]
[WhiteElo "2547"]
[BlackElo "2907"]
[TimeControl "180+1"]
[EndTime "10:19:37 PST"]
[Termination "AryanTari won by resignation"]

1. d4 {[%clk 0:02:59.8]} 1... d5 {[%clk 0:02:55.2]} 2. c4 {[%clk 0:03:00.1]}
2... e6 {[%clk 0:02:55.3]} 3. Nf3 {[%clk 0:03:00.2]} 3... Nf6 {[%clk 0:02:51.2]}
4. g3 {[%clk 0:02:59.9]} 4... dxc4 {[%clk 0:02:40.6]} 5. Bg2 {[%clk 0:03:00.1]}
5... Bb4+ {[%clk 0:02:41.3]} 6. Bd2 {[%clk 0:02:58.7]} 6... c5 {[%clk
0:02:41.3]} 7. O-O {[%clk 0:02:45.6]} 7... O-O {[%clk 0:02:40.8]} 8. Bxb4 {[%clk
0:02:40.7]} 8... cxb4 {[%clk 0:02:40.8]} 9. Ne5 {[%clk 0:02:41.1]} 9... Nc6
{[%clk 0:02:41.1]} 10. Nxc6 {[%clk 0:02:32.3]} 10... bxc6 {[%clk 0:02:42]} 11.
a3 {[%clk 0:02:24.6]} 11... b3 {[%clk 0:02:35.9]} 12. Bxc6 {[%clk 0:02:22.5]}
12... Rb8 {[%clk 0:02:35.7]} 13. Nc3 {[%clk 0:02:20.8]} 13... Qb6 {[%clk
0:02:35.5]} 14. Bg2 {[%clk 0:02:17.1]} 14... Rd8 {[%clk 0:02:35.4]} 15. e3
{[%clk 0:02:16.8]} 15... e5 {[%clk 0:02:35.6]} 16. d5 {[%clk 0:02:12.8]} 16...
Bf5 {[%clk 0:02:19.4]} 17. e4 {[%clk 0:02:11.4]} 17... Bg4 {[%clk 0:02:04.2]}
18. Bf3 {[%clk 0:02:11.3]} 18... h5 {[%clk 0:02:02.8]} 19. Qe2 {[%clk
0:02:06.2]} 19... Rbc8 {[%clk 0:01:56]} 20. Rad1 {[%clk 0:02:05.6]} 20... Bh3
{[%clk 0:01:45]} 21. Bg2 {[%clk 0:02:02.8]} 21... Bg4 {[%clk 0:01:43.1]} 22. Bf3
{[%clk 0:02:02.9]} 22... Bh3 {[%clk 0:01:43.6]} 23. Rfe1 {[%clk 0:02:01.1]}
23... Ng4 {[%clk 0:01:43.8]} 24. Bg2 {[%clk 0:01:59]} 24... Bxg2 {[%clk
0:01:40.9]} 25. Kxg2 {[%clk 0:01:59.2]} 25... Qg6 {[%clk 0:01:41]} 26. h3 {[%clk
0:01:54.8]} 26... Nf6 {[%clk 0:01:34.4]} 27. Kh2 {[%clk 0:01:51.3]} 27... Nd7
{[%clk 0:01:25.8]} 28. Rd2 {[%clk 0:01:36.3]} 28... h4 {[%clk 0:01:15.6]} 29.
Rg1 {[%clk 0:01:32.7]} 29... Qh6 {[%clk 0:01:13.5]} 30. g4 {[%clk 0:01:28.9]}
30... Qf4+ {[%clk 0:01:11.2]} 31. Kg2 {[%clk 0:01:27.9]} 31... Nc5 {[%clk
0:01:11.6]} 32. Qe3 {[%clk 0:01:03.6]} 32... Qxe3 {[%clk 0:01:06.8]} 33. fxe3
{[%clk 0:01:03.7]} 33... Nd3 {[%clk 0:01:06.6]} 34. Rf1 {[%clk 0:01:01.6]} 34...
a6 {[%clk 0:01:02.2]} 35. Rf5 {[%clk 0:00:59.8]} 35... g6 {[%clk 0:01:01.7]} 36.
Rf6 {[%clk 0:00:59.2]} 36... Nc5 {[%clk 0:00:52.7]} 37. g5 {[%clk 0:00:51.1]}
37... Ne6 {[%clk 0:00:46]} 38. Rdf2 {[%clk 0:00:41.6]} 38... Nxg5 {[%clk
0:00:44.8]} 39. Rxa6 {[%clk 0:00:41.6]} 39... Kg7 {[%clk 0:00:40.5]} 40. Ra7
{[%clk 0:00:41.1]} 40... Ra8 {[%clk 0:00:34.9]} 41. Rc7 {[%clk 0:00:38.1]} 41...
Rac8 {[%clk 0:00:34.9]} 42. d6 {[%clk 0:00:36.8]} 42... Rxc7 {[%clk 0:00:25.5]}
43. dxc7 {[%clk 0:00:36.8]} 43... Rc8 {[%clk 0:00:26.2]} 44. Nb5 {[%clk
0:00:34.9]} 44... Nxe4 {[%clk 0:00:16.1]} 45. Rf1 {[%clk 0:00:30.8]} 45... c3
{[%clk 0:00:08.7]} 46. bxc3 {[%clk 0:00:30.2]} 46... Nd2 {[%clk 0:00:09]} 47.
Rxf7+ {[%clk 0:00:20.6]} 47... Kxf7 {[%clk 0:00:06.6]} 48. Nd6+ {[%clk
0:00:21.5]} 48... Ke6 {[%clk 0:00:06.5]} 49. Nxc8 {[%clk 0:00:22.4]} 49... Kd7
{[%clk 0:00:05.9]} 50. Nb6+ {[%clk 0:00:22.8]} 50... Kxc7 {[%clk 0:00:05.6]} 51.
Na4 {[%clk 0:00:23.1]} 51... Nc4 {[%clk 0:00:05.9]} 52. Kf3 {[%clk 0:00:20.5]}
52... Kc6 {[%clk 0:00:02.9]} 53. Ke4 {[%clk 0:00:19.7]} 53... Kb5 {[%clk
0:00:03.3]} 54. Nb2 {[%clk 0:00:18.4]} 54... Nxb2 {[%clk 0:00:02.7]} 55. Kxe5
{[%clk 0:00:18.7]} 55... Nc4+ {[%clk 0:00:03.3]} 56. Kd4 {[%clk 0:00:17.2]}
56... b2 {[%clk 0:00:04.2]} 57. a4+ {[%clk 0:00:17.9]} 57... Kxa4 {[%clk
0:00:04.8]} 58. Kxc4 {[%clk 0:00:18.8]} 58... b1=Q {[%clk 0:00:05.7]} 59. e4
{[%clk 0:00:19.2]} 59... Qxe4+ {[%clk 0:00:05.8]} 60. Kc5 {[%clk 0:00:18.7]}
60... Kb3 {[%clk 0:00:06.3]} 61. c4 {[%clk 0:00:19.1]} 61... Qxc4+ {[%clk
0:00:06.5]} 62. Kd6 {[%clk 0:00:20]} 62... Qd3+ {[%clk 0:00:06.7]} 63. Ke7
{[%clk 0:00:20.9]} 63... Qxh3 {[%clk 0:00:07.6]} 64. Kf6 {[%clk 0:00:21.6]}
64... Qg3 {[%clk 0:00:08.5]} 65. Kg7 {[%clk 0:00:21.5]} 65... h3 {[%clk
0:00:09.4]} 66. Kh8 {[%clk 0:00:22.4]} 66... h2 {[%clk 0:00:10.3]} 67. Kg7
{[%clk 0:00:22.6]} 67... h1=Q {[%clk 0:00:10.7]} 68. Kg8 {[%clk 0:00:23.2]}
68... g5 {[%clk 0:00:11.2]} 69. Kg7 {[%clk 0:00:22.6]} 69... Qf2 {[%clk
0:00:11]} 70. Kg8 {[%clk 0:00:23.5]} 70... g4 {[%clk 0:00:11.7]} 71. Kg7 {[%clk
0:00:24.4]} 71... g3 {[%clk 0:00:12.6]} 0-1

[Event "*** Titled Tuesday Blitz"]
[Site "Chess.com"]
[Date "2021.02.09"]
[Round "2"]
[White "serhanberat_ozdemir"]
[Black "Alexchess1984"]
[Result "0-1"]
[WhiteElo "2457"]
[BlackElo "2687"]
[TimeControl "180+1"]
[EndTime "10:19:37 PST"]
[Termination "Alexchess1984 won by resignation"]

1. e4 {[%clk 0:03:00.9]} 1... d5 {[%clk 0:02:56.5]} 2. exd5 {[%clk 0:02:51.3]}
2... Qxd5 {[%clk 0:02:56]} 3. Nc3 {[%clk 0:02:51.8]} 3... Qa5 {[%clk 0:02:55.7]}
4. d4 {[%clk 0:02:51.7]} 4... Nf6 {[%clk 0:02:55.9]} 5. Bc4 {[%clk 0:02:40]}
5... Bg4 {[%clk 0:02:53.5]} 6. f3 {[%clk 0:02:34]} 6... Bh5 {[%clk 0:02:53.6]}
7. Ne2 {[%clk 0:02:32.6]} 7... Nc6 {[%clk 0:02:53.5]} 8. Bd2 {[%clk 0:02:24.8]}
8... O-O-O {[%clk 0:02:52.9]} 9. Nd5 {[%clk 0:02:10]} 9... Qa4 {[%clk
0:02:52.4]} 10. Bb3 {[%clk 0:01:47.8]} 10... Qa6 {[%clk 0:02:52]} 11. Nxf6
{[%clk 0:01:47.5]} 11... exf6 {[%clk 0:02:46.7]} 12. c3 {[%clk 0:01:47.1]} 12...
Re8 {[%clk 0:02:38.6]} 13. Kf2 {[%clk 0:01:38.9]} 13... Bd6 {[%clk 0:02:34.2]}
14. Nf4 {[%clk 0:01:35]} 14... Bg6 {[%clk 0:02:26.7]} 15. Re1 {[%clk 0:01:25]}
15... Na5 {[%clk 0:02:18.2]} 16. Nxg6 {[%clk 0:01:11.6]} 16... fxg6 {[%clk
0:02:11.7]} 17. Bf7 {[%clk 0:01:01.2]} 17... Rxe1 {[%clk 0:02:07]} 18. Qxe1
{[%clk 0:01:02.1]} 18... Rf8 {[%clk 0:02:02.1]} 19. Qe6+ {[%clk 0:01:00.5]}
19... Kb8 {[%clk 0:01:56.9]} 20. Re1 {[%clk 0:00:59.6]} 20... Nc6 {[%clk
0:01:48.4]} 21. Qd7 {[%clk 0:00:48.8]} 21... b5 {[%clk 0:01:20.4]} 22. Re8+
{[%clk 0:00:45]} 22... Rxe8 {[%clk 0:01:05.6]} 23. Qxe8+ {[%clk 0:00:43.8]}
23... Kb7 {[%clk 0:01:06.1]} 24. Bd5 {[%clk 0:00:40.9]} 24... Qb6 {[%clk
0:00:52.3]} 25. Be3 {[%clk 0:00:34.4]} 25... g5 {[%clk 0:00:45.4]} 26. g4 {[%clk
0:00:31.9]} 26... Bxh2 {[%clk 0:00:40.6]} 27. b3 {[%clk 0:00:32]} 27... Bf4
{[%clk 0:00:40.1]} 28. Bxf4 {[%clk 0:00:26.8]} 28... gxf4 {[%clk 0:00:40.4]} 29.
Qe4 {[%clk 0:00:27.4]} 29... g5 {[%clk 0:00:36.1]} 30. Ke2 {[%clk 0:00:20.6]}
30... Qa6 {[%clk 0:00:35.4]} 31. Kd1 {[%clk 0:00:19.2]} 31... h6 {[%clk
0:00:24.8]} 32. Kc1 {[%clk 0:00:18.1]} 32... Qa3+ {[%clk 0:00:23.6]} 33. Kb1
{[%clk 0:00:18.1]} 33... Qd6 {[%clk 0:00:24.3]} 34. c4 {[%clk 0:00:13]} 34...
bxc4 {[%clk 0:00:24]} 35. bxc4 {[%clk 0:00:13.9]} 35... Qb4+ {[%clk 0:00:22.2]}
36. Kc2 {[%clk 0:00:13.9]} 36... Qa4+ {[%clk 0:00:22.2]} 37. Kb2 {[%clk
0:00:14.2]} 37... Kb6 {[%clk 0:00:21.2]} 38. c5+ {[%clk 0:00:09.7]} 38... Kb7
{[%clk 0:00:21.4]} 39. Qd3 {[%clk 0:00:05.5]} 39... Kb8 {[%clk 0:00:17.4]} 40.
Qe4 {[%clk 0:00:02.7]} 40... Qxd4+ {[%clk 0:00:17.2]} 41. Qxd4 {[%clk
0:00:02.5]} 41... Nxd4 {[%clk 0:00:18.1]} 42. Kc3 {[%clk 0:00:03.2]} 42... Ne2+
{[%clk 0:00:15.6]} 43. Kd3 {[%clk 0:00:03.2]} 43... Ng3 {[%clk 0:00:15.9]} 44.
Bf7 {[%clk 0:00:02.8]} 44... Kb7 {[%clk 0:00:15.2]} 45. Kc4 {[%clk 0:00:03.1]}
45... Kc6 {[%clk 0:00:15.5]} 46. Be8+ {[%clk 0:00:03.3]} 46... Kb7 {[%clk
0:00:15.7]} 47. Kd5 {[%clk 0:00:04.2]} 47... f5 {[%clk 0:00:13.7]} 48. gxf5
{[%clk 0:00:04.8]} 48... Nxf5 {[%clk 0:00:13.5]} 49. Ke5 {[%clk 0:00:05.4]}
49... Nh4 {[%clk 0:00:13.7]} 50. Bh5 {[%clk 0:00:05.7]} 50... Kc6 {[%clk
0:00:12.5]} 51. Kf6 {[%clk 0:00:05.1]} 51... Kxc5 {[%clk 0:00:12.2]} 52. Kg7
{[%clk 0:00:06]} 52... Kd4 {[%clk 0:00:11.8]} 53. Kxh6 {[%clk 0:00:06.9]} 53...
Ke3 {[%clk 0:00:12.2]} 54. Kxg5 {[%clk 0:00:07.8]} 54... Nxf3+ {[%clk
0:00:12.7]} 55. Kf5 {[%clk 0:00:07.6]} 55... Nd4+ {[%clk 0:00:12.8]} 56. Ke5
{[%clk 0:00:08.1]} 56... f3 {[%clk 0:00:13.4]} 57. Bxf3 {[%clk 0:00:07.2]} 57...
Nxf3+ {[%clk 0:00:14.3]} 58. Kd5 {[%clk 0:00:08.1]} 58... Nd4 {[%clk 0:00:14]}
59. Kc5 {[%clk 0:00:06.8]} 59... Kd3 {[%clk 0:00:13.3]} 60. a4 {[%clk
0:00:07.5]} 60... a5 {[%clk 0:00:12.8]} 61. Kd5 {[%clk 0:00:05.5]} 61... Kc3
{[%clk 0:00:13]} 62. Kc5 {[%clk 0:00:06.4]} 62... Kb3 {[%clk 0:00:13.2]} 63.
Kxd4 {[%clk 0:00:06.8]} 63... Kxa4 {[%clk 0:00:14.1]} 64. Kc4 {[%clk 0:00:05.6]}
64... Ka3 {[%clk 0:00:13.8]} 65. Kc3 {[%clk 0:00:06.2]} 65... a4 {[%clk
0:00:14]} 66. Kc2 {[%clk 0:00:04]} 66... Kb4 {[%clk 0:00:14.2]} 0-1